fUSD/lending_fUSD_20240716
["ID","MTS","AMOUNT","RATE_DAILY","PERIOD"]
[332255423,1721097415246,-200.0,0.00012,2]
[332255424,1721097416098,-229.19015416,0.00012,2]
[332255425,1721097417312,-150.0,0.00012,2]
[332255426,1721097582976,150.0,0.00011199,2]
[332255427,1721097582997,150.0,0.00011199,2]
[332255428,1721097583017,150.0,0.00011199,2]
[332255429,1721097583038,200.0,0.00011199,2]
[332255430,1721097583062,1068.50288434,0.00011199,2]
[332255431,1721097600268,-350.0,0.00011839,2]
[332255432,1721097601279,-319.71,0.00011839,2]
[332255435,1721097681641,-276.19953925,0.00011839,2]
[332255436,1721097932164,1573.90073236,0.00027,120]
[332255438,1721098133675,-439.84368876,0.00011813,2]
[332255439,1721098134185,-218.88631124,0.00011813,2]
[332255445,1721098232713,-13.78984584,0.00012,2]
[332255446,1721098232724,-308.70375749,0.00013543,2]
[332255447,1721098232734,-209.42804578,0.00013543,2]
[332255448,1721098232744,-177.34355126,0.0001368,2]
[332255449,1721098232754,-1232.38679963,0.00013736,2]
[332255450,1721098232766,-219.80806013,0.00013736,2]
[332255451,1721098232775,-219.75,0.00013755,2]
[332255452,1721098232785,-250.0,0.00013755,2]
[332255453,1721098232794,-155.82423608,0.00013759,2]
[332255454,1721098232804,-180.25,0.0001378,2]
[332255455,1721098232813,-215.98933542,0.00013802,2]
[332255456,1721098232822,-1000.0,0.0001392,2]
[332255457,1721098232832,-156.0,0.00013989,2]
[332255458,1721098232841,-161.73,0.00014,2]
[332255459,1721098232851,-99.8074753,0.00014,2]
[332255460,1721098232863,-286.8125247,0.00014,2]
[332255461,1721098232873,-800.0,0.00014,2]
[332255462,1721098232882,-500.0,0.00014,2]
[332255463,1721098232891,-500.0,0.00014,2]
[332255464,1721098232900,-513.41,0.00014,2]
[332255465,1721098232910,-500.0,0.00014,2]
[332255466,1721098232920,-500.0,0.00014,2]
[332255467,1721098232930,-500.0,0.00014,2]
[332255468,1721098232940,-500.0,0.00014,2]
[332255469,1721098232949,-500.0,0.00014,2]
[332255470,1721098232959,-537.13,0.00014,2]
[332255471,1721098232970,-262.63,0.00014,2]
[332255472,1721098232979,-658.73,0.00014077,2]
[332255473,1721098232988,-7555.46,0.000141,2]
[332255474,1721098232998,-1297.90160503,0.000142,2]
[332255475,1721098238483,-1702.09839497,0.000142,2]
[332255477,1721098238493,-4876.03449504,0.000142,2]
[332255478,1721098239288,-654.71550496,0.000142,2]
[332255479,1721098239298,-3507.83635365,0.000142,2]
[332255480,1721098239776,-910.15364635,0.000142,2]
[332255481,1721098239786,-719.81226942,0.000142,2]
[332255482,1721098239797,-1095.36771121,0.000142,2]
[332255483,1721098239808,-1840.7599115,0.000142,2]
[332255484,1721098239819,-541.18010787,0.000142,2]
[332255485,1721098239828,-11361.12960678,0.000142,2]
[332255489,1721098240477,-302.85004585,0.000142,2]
[332255490,1721098240665,-3403.26836158,0.000142,2]
[332255491,1721098240679,-337.5300175,0.000142,2]
[332255492,1721098240690,-312.60966571,0.000142,2]
[332255493,1721098240867,-14282.60230258,0.000142,2]
[332255494,1721098240876,-379.4822712,0.000142,5]
[332255495,1721098240888,-220.5177288,0.000142,5]
[332255496,1721098240897,-1300.0,0.000143,5]
[332255497,1721098240907,-74.9101139,0.00014319,2]
[332255498,1721098240919,-217.63226312,0.00014319,2]
[332255499,1721098240929,-2000.0,0.000144,5]
[332255500,1721098240939,-832.53,0.00014422,2]
[332255501,1721098240949,-838.41,0.00014422,2]
[332255502,1721098240959,-500.0,0.0001448,2]
[332255503,1721098240969,-500.0,0.00014489,2]
[332255504,1721098240980,-500.0,0.00014498,2]
[332255505,1721098240989,-572.7596182,0.000145,2]
[332255506,1721098240999,-2700.0,0.000145,5]
[332255507,1721098241009,-1621.53893494,0.00014503,2]
[332255508,1721098241018,-500.0,0.00014506,2]
[332255509,1721098241028,-500.0,0.00014515,2]
[332255510,1721098241038,-477.544435,0.00014521,2]
[332255511,1721098241048,-500.0,0.00014524,2]
[332255512,1721098241057,-500.0,0.00014533,2]
[332255514,1721098241067,-500.0,0.00014542,2]
[332255516,1721098241077,-500.0,0.0001455,2]
[332255518,1721098241086,-500.0,0.00014559,2]
[332255520,1721098241096,-500.0,0.00014568,2]
[332255522,1721098241105,-1268.655,0.00014576,2]
[332255524,1721098241115,-1661.0,0.00014576,2]
[332255526,1721098241124,-1252.0,0.00014576,2]
[332255528,1721098241134,-150.0,0.00014576,2]
[332255530,1721098241144,-445.854,0.00014576,2]
[332255532,1721098241154,-809.0,0.00014576,2]
[332255534,1721098241163,-1257.471,0.00014576,2]
[332255536,1721098241172,-1474.775,0.00014576,2]
[332255538,1721098241182,-550.751,0.00014576,2]
[332255540,1721098241192,-1991.0,0.00014576,2]
[332255542,1721098241202,-3278.0,0.00014576,2]
[332255544,1721098241212,-21307.343,0.00014576,2]
[332255546,1721098241222,-211.0,0.00014576,2]
[332255548,1721098241232,-734.669,0.00014576,2]
[332255550,1721098241241,-150.195,0.00014576,2]
[332255552,1721098241250,-150.0,0.00014576,2]
[332255554,1721098241260,-3400.0,0.000146,5]
[332255556,1721098241270,-600.0,0.000147,5]
[332255558,1721098241279,-150.0,0.00014733,2]
[332255560,1721098241289,-150.0,0.00014735,2]
[332255562,1721098241298,-150.0,0.00014736,2]
[332255564,1721098241308,-150.0,0.00014738,2]
[332255566,1721098241318,-150.0,0.00014739,2]
[332255568,1721098241327,-150.0,0.00014744,2]
[332255570,1721098241336,-150.0,0.00014744,2]
[332255572,1721098241345,-150.0,0.00014748,2]
[332255574,1721098241355,-150.0,0.00014749,2]
[332255576,1721098241364,-150.0,0.0001475,2]
[332255578,1721098241373,-150.0,0.00014753,2]
[332255580,1721098241382,-150.0,0.00014753,2]
[332255582,1721098241392,-8118.5544,0.00014755,2]
[332255584,1721098241401,-1500.0,0.00014756,2]
[332255586,1721098241410,-150.0,0.00014761,2]
[332255588,1721098241419,-150.0,0.00014762,2]
[332255590,1721098241429,-150.0,0.00014766,2]
[332255592,1721098241438,-150.0,0.00014767,2]
[332255594,1721098241448,-150.0,0.00014767,2]
[332255596,1721098241458,-150.0,0.0001477,2]
[332255597,1721098241467,-150.0,0.00014771,2]
[332255599,1721098241478,-150.0,0.00014773,2]
[332255600,1721098241487,-150.0,0.00014782,2]
[332255601,1721098241497,-150.0,0.00014786,2]
[332255602,1721098241506,-150.0,0.00014786,2]
[332255603,1721098241516,-150.0,0.00014788,2]
[332255604,1721098241525,-150.0,0.00014789,2]
[332255605,1721098241535,-304.7835,0.0001479,2]
[332255606,1721098241544,-150.0,0.00014796,2]
[332255607,1721098241553,-600.0,0.000148,5]
[332255608,1721098241562,-150.0,0.00014803,2]
[332255609,1721098241571,-150.0,0.00014804,2]
[332255610,1721098241581,-150.0,0.00014806,2]
[332255611,1721098241590,-243.6939747,0.00014808,2]
[332255612,1721098241600,-150.0,0.00014809,2]
[332255613,1721098241610,-150.0,0.0001481,2]
[332255614,1721098241619,-150.0,0.00014811,2]
[332255615,1721098241629,-150.0,0.00014813,2]
[332255616,1721098241639,-150.0,0.00014813,2]
[332255617,1721098241648,-150.0,0.0001482,2]
[332255618,1721098241658,-150.0,0.00014823,2]
[332255619,1721098241669,-150.0,0.00014823,2]
[332255620,1721098241683,-150.0,0.00014823,2]
[332255621,1721098241693,-150.0,0.00014824,2]
[332255622,1721098241884,-300.0,0.00014825,2]
[332255623,1721098241895,-150.0,0.00014827,2]
[332255624,1721098241905,-150.0,0.00014838,2]
[332255625,1721098241915,-150.0,0.00014854,2]
[332255626,1721098241926,-150.0,0.00014855,2]
[332255627,1721098241935,-150.0,0.00014859,2]
[332255628,1721098241945,-150.0,0.0001486,2]
[332255629,1721098241954,-150.0,0.00014864,2]
[332255630,1721098241964,-150.0,0.00014865,2]
[332255631,1721098241974,-150.0,0.00014869,2]
[332255632,1721098241984,-150.0,0.0001487,2]
[332255633,1721098241994,-150.0,0.00014871,2]
[332255634,1721098242003,-1500.0,0.00014872,2]
[332255635,1721098242013,-150.0,0.00014874,2]
[332255636,1721098242023,-150.0,0.00014875,2]
[332255637,1721098242032,-150.0,0.00014876,2]
[332255638,1721098242042,-150.0,0.00014877,2]
[332255639,1721098242052,-150.0,0.00014878,2]
[332255640,1721098242062,-500.0,0.00014879,2]
[332255641,1721098242072,-150.0,0.00014879,2]
[332255642,1721098242082,-500.0,0.0001488,2]
[332255643,1721098242091,-200.0,0.0001488,2]
[332255644,1721098242101,-150.0,0.0001488,2]
[332255645,1721098242111,-150.0,0.00014886,2]
[332255646,1721098242120,-150.0,0.00014886,2]
[332255647,1721098242129,-1000.0,0.0001489,2]
[332255648,1721098242138,-150.0,0.00014891,2]
[332255649,1721098242148,-150.0,0.00014893,2]
[332255650,1721098242157,-150.0,0.00014898,2]
[332255651,1721098242167,-500.0,0.00014899,2]
[332255652,1721098242177,-223.04,0.00014899,2]
[332255653,1721098242186,-500.0,0.00014899,2]
[332255654,1721098242196,-514.29962984,0.00014899,2]
[332255655,1721098242205,-2000.0,0.000149,2]
[332255656,1721098242215,-150.0,0.000149,2]
[332255657,1721098242224,-600.0,0.000149,5]
[332255658,1721098242234,-174.01269186,0.000149,2]
[332255659,1721098242243,-230.85146497,0.000149,2]
[332255660,1721098242253,-150.0,0.00014902,2]
[332255661,1721098242262,-150.0,0.00014902,2]
[332255662,1721098242271,-305.90178807,0.00014902,2]
[332255663,1721098242281,-150.0,0.00014905,2]
[332255664,1721098242291,-150.0,0.00014906,2]
[332255665,1721098242300,-150.0,0.00014907,2]
[332255666,1721098242309,-150.0,0.0001491,2]
[332255667,1721098242319,-150.0,0.00014914,2]
[332255668,1721098242328,-150.0,0.00014918,2]
[332255669,1721098242337,-300.0,0.0001492,2]
[332255670,1721098242347,-150.0,0.00014925,2]
[332255671,1721098242357,-150.0,0.00014926,2]
[332255672,1721098242367,-150.0,0.00014929,2]
[332255673,1721098242376,-1500.0,0.00014929,2]
[332255674,1721098242386,-150.0,0.00014931,2]
[332255675,1721098242396,-150.0,0.00014932,2]
[332255676,1721098242406,-150.0,0.00014932,2]
[332255677,1721098242415,-150.0,0.00014933,2]
[332255678,1721098242424,-1500.0,0.0001494,2]
[332255679,1721098242434,-150.0,0.00014942,2]
[332255680,1721098242444,-150.0,0.00014946,2]
[332255681,1721098242455,-150.0,0.00014946,2]
[332255682,1721098242465,-150.0,0.00014948,2]
[332255683,1721098242476,-150.0,0.00014949,2]
[332255684,1721098242485,-500.0,0.00014954,2]
[332255685,1721098242493,-150.0,0.00014954,2]
[332255686,1721098242504,-500.0,0.00014954,2]
[332255687,1721098242515,-300.0,0.00014957,2]
[332255688,1721098242525,-150.0,0.0001496,2]
[332255689,1721098242535,-150.0,0.0001496,2]
[332255690,1721098242546,-150.0,0.00014961,2]
[332255691,1721098242557,-150.0,0.00014962,2]
[332255692,1721098242567,-150.0,0.00014966,2]
[332255693,1721098242578,-150.0,0.00014973,2]
[332255694,1721098242587,-150.0,0.00014977,2]
[332255695,1721098242597,-150.0,0.00014978,2]
[332255696,1721098242608,-150.0,0.00014978,2]
[332255697,1721098242617,-3529.1550448,0.0001498,3]
[332255698,1721098242627,-150.0,0.00014981,2]
[332255699,1721098242637,-150.0,0.00014982,2]
[332255700,1721098242648,-150.0,0.00014985,2]
[332255701,1721098242657,-500.0,0.00014989,2]
[332255702,1721098242667,-1773.68,0.00014989,2]
[332255703,1721098242679,-240.4962178,0.00014989,2]
[332255704,1721098242689,-500.0,0.00014989,2]
[332255705,1721098242699,-586.50100368,0.00014989,2]
[332255706,1721098242708,-500.0,0.00014989,2]
[332255707,1721098242719,-205.67451408,0.00014989,7]
[332255708,1721098242729,-381.16133046,0.00014989,2]
[332255716,1721098243521,-118.83866954,0.00014989,2]
[332255718,1721098243530,-882.2887612,0.0001499,3]
[332255720,1721098243540,-150.0,0.0001499,2]
[332255722,1721098243550,-882.2887612,0.0001499,3]
[332255724,1721098243559,-25533.4834037,0.0001499,3]
[332255727,1721098243570,-900.0,0.0001499,3]
[332255754,1721098246618,-6456.1173148,0.0001499,3]
[332255755,1721098246633,-8400.0,0.0001499,3]
[332255756,1721098246743,-2803.90825883,0.0001499,3]
[332255757,1721098293300,253.65,0.00027,120]
[332255758,1721098452217,1000.0,0.00027,120]
[332255759,1721098579430,150.0,0.00011199,2]
[332255760,1721098579451,150.0,0.00011199,2]
[332255761,1721098579472,150.0,0.00011199,2]
[332255762,1721098579493,150.0,0.00011199,2]
[332255763,1721098579515,150.0,0.00011199,2]
[332255764,1721098579536,150.0,0.00011199,2]
[332255765,1721098579557,150.0,0.00011199,2]
[332255766,1721098579577,150.0,0.00011199,2]
[332255767,1721098579598,150.0,0.00011199,2]
[332255768,1721098579623,7540.75547106,0.00011199,2]
[332255769,1721098655732,-487.60322801,0.00011843,2]
[332255770,1721098656338,-157.57677199,0.00011843,2]
[332255771,1721098909926,-223.80046075,0.00012302,2]
[332255772,1721098910360,-223.80046075,0.00012302,2]
[332255773,1721098910640,-211.16587894,0.00012302,2]
[332255774,1721099026753,-211.67844404,0.00012314,2]
[332255779,1721099352141,-500.0,0.00011785,2]
[332255780,1721099352485,-160.72,0.00011785,2]
[332255781,1721099379128,150.0,0.00011199,2]
[332255782,1721099379150,6.0,0.00011199,2]
[332255784,1721099391830,-441.44521627,0.00012314,2]
[332255786,1721099418446,319.09744479,0.00027,120]
[332255789,1721099431758,-174.93957317,0.00012314,2]
[332255790,1721099431768,-162.27974683,0.00013128,2]
[332255791,1721099431779,-464.40018232,0.00013128,2]
[332255792,1721099431788,-429.48059453,0.00013543,2]
[332255793,1721099431800,-117.79067306,0.00013543,2]
[332255794,1721099431810,-345.99327274,0.00013569,2]
[332255795,1721099431980,-302.40407145,0.00013569,2]
[332255809,1721099437893,-649.3947131,0.00013569,2]
[332255810,1721099437906,-943.15404271,0.00013569,2]
[332255811,1721099437916,-329.37,0.000137,2]
[332255812,1721099437927,-300.0,0.0001371,2]
[332255813,1721099437936,-5426.22388076,0.00013711,2]
[332255814,1721099437947,-6522.79611924,0.00013711,2]
[332255815,1721099437957,-250.0,0.00013713,2]
[332255816,1721099437967,-180.25,0.00013735,2]
[332255817,1721099437976,-2331.14284751,0.000138,2]
[332255818,1721099437994,-597.43612165,0.000138,2]
[332255821,1721099440181,-1446.43551661,0.000138,2]
[332255822,1721099440194,-399.69544657,0.000138,2]
[332255852,1721099442980,-464.02185373,0.000138,2]
[332255856,1721099445892,-2896.5521411,0.000138,2]
[332255857,1721099445904,-2970.71977678,0.000138,2]
[332255858,1721099445915,-716.37139118,0.000138,2]
[332255859,1721099445927,-1087.15276736,0.000138,2]
[332255860,1721099445938,-15581.17213751,0.000138,2]
[332255861,1721099445948,-6392.15,0.000138,2]
[332255862,1721099445957,-227.38500209,0.00013802,2]
[332255863,1721099445967,-669.54,0.00013835,2]
[332255864,1721099445976,-4641.1,0.00013835,2]
[332255865,1721099445986,-586.53552664,0.00013836,2]
[332255866,1721099445995,-200.0,0.00013846,2]
[332255867,1721099446004,-1996.11,0.00013846,2]
[332255868,1721099446014,-611.97504503,0.00013849,2]
[332255869,1721099446023,-946.36224616,0.00013899,2]
[332255870,1721099446032,-599.45308107,0.00013899,2]
[332255871,1721099446041,-1000.0,0.00013973,5]
[332255872,1721099446051,-1000.0,0.00013999,2]
[332255873,1721099446064,-660.72,0.00014049,2]
[332255874,1721099446073,-679.05390133,0.00014055,2]
[332255875,1721099446082,-416.59,0.000141,2]
[332255876,1721099446091,-300.0,0.00014192,2]
[332255877,1721099446101,-425.03,0.00014192,2]
[332255878,1721099446110,-425.03,0.00014192,2]
[332255879,1721099446120,-419.52,0.00014192,2]
[332255881,1721099446130,-1900.0,0.000142,5]
[332255883,1721099446141,-156.0,0.00014285,2]
[332255885,1721099446151,-3800.0,0.000143,5]
[332255886,1721099446160,-5700.0,0.000144,5]
[332255887,1721099446169,-840.57,0.00014419,2]
[332255888,1721099446179,-419.67,0.00014419,2]
[332255889,1721099446188,-917.03,0.00014419,2]
[332255890,1721099446197,-832.71,0.00014419,2]
[332255891,1721099446207,-1687.16,0.00014419,2]
[332255892,1721099446216,-832.71,0.00014419,2]
[332255893,1721099446226,-1664.16,0.00014419,2]
[332255894,1721099446235,-7700.0,0.000145,5]
[332255895,1721099446245,-429.789991,0.00014521,2]
[332255896,1721099446254,-620.0,0.00014576,2]
[332255897,1721099446263,-809.0,0.00014576,2]
[332255898,1721099446273,-444.0,0.00014576,2]
[332255899,1721099446282,-449.0,0.00014576,2]
[332255900,1721099446292,-3243.764,0.00014576,2]
[332255901,1721099446301,-1635.246,0.00014576,2]
[332255902,1721099446311,-9600.0,0.000146,5]
[332255903,1721099446319,-600.0,0.00014641,2]
[332255904,1721099446329,-4541.7883,0.000147,2]
[332255905,1721099446338,-1900.0,0.000147,5]
[332255906,1721099446347,-4365.0,0.00014701,2]
[332255907,1721099446356,-150.0,0.00014729,2]
[332255908,1721099446366,-150.0,0.0001473,2]
[332255909,1721099446375,-500.0,0.00014731,2]
[332255910,1721099446385,-150.0,0.00014731,2]
[332255911,1721099446394,-150.0,0.00014732,2]
[332255912,1721099446402,-150.0,0.00014733,2]
[332255913,1721099446411,-150.0,0.00014734,2]
[332255914,1721099446421,-500.0,0.00014739,2]
[332255915,1721099446430,-500.0,0.00014748,2]
[332255916,1721099446439,-150.0,0.0001475,2]
[332255917,1721099446448,-150.0,0.00014751,2]
[332255918,1721099446458,-150.0,0.00014754,2]
[332255919,1721099446467,-150.0,0.00014754,2]
[332255920,1721099446476,-150.0,0.00014755,2]
[332255921,1721099446486,-150.0,0.00014756,2]
[332255922,1721099446495,-500.0,0.00014757,2]
[332255923,1721099446504,-150.0,0.00014764,2]
[332255924,1721099446513,-500.0,0.00014766,2]
[332255925,1721099446522,-150.0,0.00014771,2]
[332255926,1721099446531,-150.0,0.00014773,2]
[332255927,1721099446540,-500.0,0.00014775,2]
[332255928,1721099446549,-150.0,0.00014775,2]
[332255929,1721099446558,-150.0,0.00014777,2]
[332255930,1721099446567,-150.0,0.00014783,2]
[332255931,1721099446576,-500.0,0.00014783,2]
[332255932,1721099446585,-150.0,0.00014786,2]
[332255933,1721099446594,-150.0,0.00014791,2]
[332255934,1721099446603,-150.0,0.00014792,2]
[332255935,1721099446612,-150.0,0.00014792,2]
[332255936,1721099446621,-150.0,0.00014798,2]
[332255937,1721099446630,-150.0,0.00014799,2]
[332255938,1721099446640,-150.0,0.00014799,2]
[332255939,1721099446649,-3000.0,0.000148,2]
[332255940,1721099446659,-1900.0,0.000148,5]
[332255941,1721099446668,-150.0,0.00014805,2]
[332255942,1721099446677,-150.0,0.00014808,2]
[332255943,1721099446686,-150.0,0.00014817,2]
[332255944,1721099446695,-150.0,0.00014818,2]
[332255945,1721099446704,-150.0,0.00014819,2]
[332255946,1721099446713,-150.0,0.00014821,2]
[332255947,1721099446722,-150.0,0.00014825,2]
[332255948,1721099446731,-150.0,0.00014829,2]
[332255949,1721099446740,-150.0,0.00014831,2]
[332255950,1721099446750,-150.0,0.00014834,2]
[332255951,1721099446760,-150.0,0.00014837,2]
[332255952,1721099446769,-150.0,0.00014838,2]
[332255953,1721099446778,-150.0,0.00014844,2]
[332255954,1721099446787,-150.0,0.00014847,2]
[332255955,1721099446796,-150.0,0.00014849,2]
[332255956,1721099446983,-150.0,0.00014852,2]
[332255957,1721099446992,-150.0,0.00014852,2]
[332255958,1721099447002,-150.0,0.00014854,2]
[332255959,1721099447011,-150.0,0.0001486,2]
[332255960,1721099447020,-150.0,0.00014864,2]
[332255961,1721099447029,-150.0,0.00014865,2]
[332255962,1721099447039,-150.0,0.00014869,2]
[332255963,1721099447051,-150.0,0.0001487,2]
[332255964,1721099447065,-150.0,0.00014873,2]
[332255965,1721099447076,-150.0,0.00014876,2]
[332255966,1721099447085,-222.97,0.00014877,3]
[332255967,1721099447095,-498.3028876,0.0001488,2]
[332255968,1721099447111,-1.6971124,0.0001488,2]
[332255969,1721099447121,-150.0,0.00014881,2]
[332255970,1721099447130,-150.0,0.00014882,2]
[332255971,1721099447141,-22.8028876,0.00014886,2]
[332255972,1721099602350,-272.49,0.00012,15]
[332255973,1721099602757,-211.67844404,0.00012,15]
[332255974,1721099603404,-223.80046075,0.00012,15]
[332255977,1721099894582,150.0,0.00011199,2]
[332255978,1721099894604,150.0,0.00011199,2]
[332255979,1721099894625,150.0,0.00011199,2]
[332255980,1721099894646,150.0,0.00011199,2]
[332255981,1721099894668,150.0,0.00011199,2]
[332255982,1721099894691,150.0,0.00011199,2]
[332255983,1721099894713,150.0,0.00011199,2]
[332255984,1721099894737,150.0,0.00011199,2]
[332255985,1721099894757,150.0,0.00011199,2]
[332255986,1721099894781,150.0,0.00011199,2]
[332255987,1721099894803,150.0,0.00011199,2]
[332255988,1721099894825,150.0,0.00011199,2]
[332255989,1721099894845,150.0,0.00011199,2]
[332255990,1721099894866,150.0,0.00011199,2]
[332255991,1721099894888,150.0,0.00011199,2]
[332255992,1721099894910,150.0,0.00011199,2]
[332255993,1721099894933,150.0,0.00011199,2]
[332255994,1721099894959,7315.36194374,0.00011199,2]
[332255995,1721099894992,-150.0,0.00011199,2]
[332255996,1721099895024,-150.0,0.00011199,2]
[332255997,1721099895071,-150.0,0.00011199,2]
[332255998,1721099895102,-150.0,0.00011199,2]
[332255999,1721099895133,-150.0,0.00011199,2]
[332256000,1721099895162,-150.0,0.00011199,2]
[332256001,1721099895187,-150.0,0.00011199,2]
[332256002,1721099895247,-150.0,0.00011199,2]
[332256003,1721099895334,-150.0,0.00011199,2]
[332256004,1721099895418,-221.16124937,0.00011199,2]
[332256005,1721099895510,-150.0,0.00011199,2]
[332256006,1721099895582,-150.0,0.00011199,2]
[332256007,1721099895670,-150.0,0.00011199,2]
[332256008,1721099895736,-150.0,0.00011199,2]
[332256009,1721099895990,-150.0,0.00011199,2]
[332256010,1721099896024,-150.0,0.00011199,2]
[332256011,1721099896068,-150.0,0.00011199,2]
[332256012,1721099896094,-150.0,0.00011199,2]
[332256013,1721099896163,-150.0,0.00011199,2]
[332256014,1721099896272,-150.0,0.00011199,2]
[332256015,1721099896363,-150.0,0.00011199,2]
[332256016,1721099898637,-450.88139818,0.00011199,2]
[332256017,1721099899600,-500.0,0.00011199,2]
[332256019,1721100052019,-200.0,0.00011099,2]
[332256020,1721100052567,-150.0,0.00011099,2]
[332256021,1721100053302,-150.0,0.00011099,2]
[332256022,1721100053928,-150.0,0.00011099,2]
[332256023,1721100061813,-150.0,0.00010954,2]
[332256024,1721100062640,-150.0,0.00010954,2]
[332256025,1721100063129,-150.0,0.00010954,2]
[332256026,1721100064131,-150.0,0.00010954,2]
[332256027,1721100064986,-150.0,0.00010954,2]
[332256030,1721100116813,-150.0,0.00010899,2]
[332256031,1721100117309,-150.0,0.00010899,2]
[332256032,1721100118128,-150.0,0.00010899,2]
[332256033,1721100118733,-150.0,0.00010899,2]
[332256034,1721100119726,-150.0,0.00010899,2]
[332256035,1721100120485,-190.46567593,0.00010899,2]
[332256036,1721100121244,-252.44475007,0.00010899,2]
[332256037,1721100162634,-166.86588524,0.00010854,2]
[332256038,1721100163086,-150.0,0.00010854,2]
[332256039,1721100163839,-150.0,0.00010854,2]
[332256040,1721100164689,-150.0,0.00010854,2]
[332256041,1721100165276,-150.0,0.00010854,2]
[332256042,1721100246590,-150.0,0.00010854,2]
[332256043,1721100248656,-150.0,0.00010854,2]
[332256044,1721100289973,-126.19953925,0.00010854,2]
[332256045,1721100289995,-23.80046075,0.00010854,2]
[332256046,1721100290556,-150.0,0.00010854,2]
[332256047,1721100320878,150.0,9e-05,2]
[332256048,1721100320899,150.0,9e-05,2]
[332256049,1721100320919,150.0,9e-05,2]
[332256050,1721100320942,1.7762956,9e-05,2]
[332256089,1721100632016,-526.4704124,0.00010854,2]
[332256090,1721100632027,-155.0,0.00010909,2]
[332256091,1721100632037,-626.67992915,0.00010909,2]
[332256092,1721100632048,-526.47041239,0.00010926,2]
[332256093,1721100632059,-85.68,0.00010954,2]
[332256094,1721100632069,-526.47041239,0.00010997,2]
[332256095,1721100632078,-233.0,0.00011097,2]
[332256096,1721100632087,-297.86117286,0.00011098,2]
[332256097,1721100632098,-409.29243917,0.00011098,2]
[332256098,1721100632107,-13.28115779,0.00011098,2]
[332256099,1721100632121,-636.71884221,0.00011098,2]
[332256100,1721100632132,-154.52938164,0.00011189,2]
[332256101,1721100632144,-1017.04312744,0.00011189,2]
[332256102,1721100632157,-450.0,0.00011189,2]
[332256103,1721100632223,-3616.9307273,0.00011189,2]
[332256104,1721100632232,-4420.50641199,0.00011189,2]
[332256105,1721100632241,-1706.09020941,0.00011199,2]
[332256106,1721100632259,-2745.08673602,0.00011199,2]
[332256107,1721100632270,-607.95818831,0.00011199,2]
[332256108,1721100632281,-1001.55012815,0.00011199,2]
[332256109,1721100632293,-1007.07587274,0.00011199,2]
[332256110,1721100632327,-883.38639551,0.00011199,2]
[332256111,1721100632338,-1660.29818461,0.00011199,2]
[332256112,1721100632349,-95193.38872064,0.00011199,2]
[332256113,1721100632358,-32494.27250408,0.00011199,2]
[332256114,1721100632367,-14905.97664334,0.00011199,2]
[332256115,1721100632376,-15477.08485988,0.00011199,2]
[332256116,1721100632385,-10547.26551419,0.00011199,2]
[332256117,1721100632395,-11003.26636218,0.00011199,2]